bitfinex-derivatives/quotes_SOLF0:USTF0_20251006
["timestamp","ask_amount","ask_price","bid_price","bid_amount"]
[1759746221406,6.56,232.78,232.72,3.8656]
[1759746221607,6.56,232.82,232.74,7.39]
[1759746221912,6.56,232.82,232.76,8.61734169]
[1759746222606,6.56,232.82,232.78,7.39]
[1759746223812,6.56,232.82,232.77,3.8647]
[1759746224114,6.56,232.82,232.78,7.39]
[1759746227218,3.11725701,232.81,232.78,7.39]
[1759746232220,3.11725701,232.81,232.74,5.09274169]
[1759746232221,6.55,232.8,232.74,5.09274169]
[1759746233222,6.55,232.8,232.74,1.22734169]
[1759746233422,3.11992243,232.79,232.74,1.22734169]
[1759746233622,3.11992243,232.79,232.75,7.35]
[1759746234024,3.11992243,232.79,232.74,1.22734169]
[1759746234316,3.11983975,232.79,232.74,1.22734169]
[1759746234522,6.55,232.79,232.75,7.35]
[1759746234724,10.4145,232.8,232.71,7.35]
[1759746234924,3.11981135,232.79,232.71,8.57734169]
[1759746236625,3.11981135,232.79,232.71,12.44304169]
[1759746237028,3.11981135,232.79,232.71,11.2157]
[1759746237626,3.11981135,232.79,232.72,3.8656]
[1759746238027,3.11981135,232.79,232.73,7.35]
[1759746239831,3.11981135,232.79,232.73,11.2154]
[1759746240829,3.11981135,232.79,232.74,3.8652]
[1759746241233,3.11981135,232.79,232.75,7.35]
[1759746241728,6.55,232.79,232.75,7.35]
[1759746242136,3.11641368,232.78,232.75,7.35]
[1759746243135,3.11641368,232.78,232.74,3.8652]
[1759746243535,3.11641368,232.78,232.75,7.35]
[1759746243736,3.11641368,232.78,232.74,3.8652]
[1759746244133,3.11641368,232.78,232.75,7.35]
[1759746244333,6.55,232.85,232.75,7.35]
[1759746244636,108.07686871,232.84,232.75,7.35]
[1759746244832,3.11686871,232.83,232.75,7.35]
[1759746245732,3.11686871,232.83,232.74,1.91956508]
[1759746245938,3.11686871,232.83,232.75,7.35]
[1759746246438,3.11686871,232.83,232.75,11.2151]
[1759746247032,6.98086871,232.83,232.75,11.2151]
[1759746247237,6.98086871,232.83,232.75,7.35]
[1759746247238,6.55,232.82,232.75,7.35]
[1759746247435,3.11686871,232.81,232.75,7.35]
[1759746248139,6.55,232.8,232.7,7.35]
[1759746248439,3.11686871,232.79,232.7,7.35]
[1759746248637,104.96,232.78,232.68,7.35]
[1759746249135,3.11050357,232.77,232.68,7.35]
[1759746249638,3.11050357,232.77,232.73,7.35]
[1759746249835,9.66050357,232.77,232.68,7.35]
[1759746250035,6.55,232.77,232.68,7.35]
[1759746250735,3.1121286,232.76,232.68,7.35]
[1759746251135,3.11374022,232.76,232.68,7.35]
[1759746251643,3.11374022,232.76,232.7,3.866]
[1759746252143,3.11374022,232.76,232.72,7.35]
[1759746252336,9.66374022,232.76,232.72,7.35]
[1759746252541,3.11374022,232.75,232.72,7.35]
[1759746253042,3.11374022,232.75,232.71,3.8658]
[1759746253343,3.11374022,232.77,232.71,3.8658]
[1759746253538,3.11374022,232.76,232.71,3.8658]
[1759746253736,3.11374022,232.77,232.72,7.35]
[1759746253933,3.11374022,232.76,232.71,3.8658]
[1759746254138,6.55,232.76,232.7,7.35]
[1759746254441,3.11374022,232.75,232.69,11.2162]
[1759746255840,9.66374022,232.74,232.65,1.91956508]
[1759746256042,3.11374022,232.73,232.66,7.35]
[1759746256243,3.11374022,232.72,232.66,7.35]
[1759746256439,3.11374022,232.73,232.66,7.35]
[1759746256643,3.11374022,232.72,232.66,7.35]
[1759746256841,3.11374022,232.73,232.66,7.35]
[1759746257040,3.11374022,232.72,232.66,7.35]
[1759746257237,3.11374022,232.73,232.68,7.35]
[1759746257446,6.55,232.74,232.67,3.8664]
[1759746257447,3.11374022,232.72,232.67,3.8664]
[1759746257739,3.11374022,232.73,232.66,7.97]
[1759746257944,3.11374022,232.74,232.66,7.97]
[1759746258646,3.11374022,232.74,232.7,3.8659]
[1759746258840,3.11374022,232.74,232.71,7.97]
[1759746259037,3.11374022,232.74,232.7,3.8659]
[1759746259244,3.11374022,232.74,232.71,7.97]
[1759746259445,3.11374022,232.74,232.7,3.8659]
[1759746259838,3.11374022,232.74,232.71,7.97]
[1759746260044,3.11374022,232.77,232.71,7.97]
[1759746260243,3.11374022,232.76,232.7,11.8359]
[1759746260441,3.11374022,232.75,232.71,7.97]
[1759746260645,3.11374022,232.77,232.71,7.97]
[1759746260950,3.11374022,232.76,232.7,11.8359]
[1759746261244,3.11374022,232.75,232.7,3.8659]
[1759746261444,3.11374022,232.77,232.71,7.97]
[1759746261645,3.11374022,232.76,232.7,11.8359]
[1759746261847,3.11374022,232.75,232.71,7.97]
[1759746262047,3.11374022,232.77,232.71,7.97]
[1759746262242,3.11374022,232.76,232.7,3.8659]
[1759746262440,3.11374022,232.75,232.71,7.97]
[1759746262644,3.11374022,232.77,232.7,11.8359]
[1759746262943,3.11374022,232.76,232.7,11.8359]
[1759746263142,3.11374022,232.75,232.71,3.8658]
[1759746263346,42.29,232.78,232.68,1.91956508]
[1759746263347,3.11374022,232.77,232.68,1.91956508]
[1759746263544,3.11374022,232.77,232.69,7.97]
[1759746264047,3.11374022,232.77,232.73,3.8654]
[1759746264747,3.11374022,232.77,232.74,7.97]
[1759746264950,3.11374022,232.77,232.73,3.8654]
[1759746265544,6.57,232.82,232.72,7.97]
[1759746265744,3.09957358,232.81,232.67,7.97]
[1759746266049,9.66957358,232.8,232.7,9.88956508]
[1759746266250,3.8648,232.78,232.7,9.88956508]
[1759746266439,6.96437358,232.78,232.7,9.88956508]
[1759746266640,3.09957358,232.77,232.7,9.88956508]
[1759746266850,3.8648,232.78,232.7,9.88956508]
[1759746267145,3.09957358,232.78,232.7,9.88956508]
[1759746267352,3.09957358,232.82,232.7,9.88956508]
[1759746267551,3.09957358,232.81,232.7,9.88956508]
[1759746267852,3.09957358,232.8,232.7,9.88956508]
[1759746268052,3.09957358,232.82,232.7,9.88956508]
[1759746268254,3.09957358,232.81,232.7,9.88956508]
[1759746268452,3.09957358,232.8,232.7,9.88956508]
[1759746268748,3.09957358,232.82,232.74,7.97]
[1759746268953,3.09957358,232.81,232.74,9.88956508]
[1759746269151,3.09957358,232.8,232.75,3.8651]
[1759746269356,3.09957358,232.82,232.76,7.97]
[1759746269556,3.09957358,232.81,232.75,3.8651]
[1759746269856,3.09957358,232.82,232.76,7.97]
[1759746270050,3.09957358,232.81,232.76,7.97]
[1759746270249,3.09957358,232.82,232.76,7.97]
[1759746270450,3.09957358,232.81,232.76,7.97]
[1759746270651,3.09957358,232.82,232.76,7.97]
[1759746270954,3.09957358,232.81,232.76,7.97]
[1759746271153,3.09957358,232.82,232.76,7.97]
[1759746271357,3.09957358,232.81,232.75,3.8651]
[1759746271652,3.09957358,232.82,232.76,7.97]
[1759746271850,3.09957358,232.81,232.75,3.8651]
[1759746272047,3.09957358,232.82,232.76,7.97]
[1759746272251,3.09957358,232.81,232.75,3.8651]
[1759746272449,3.09957358,232.82,232.76,7.97]
[1759746272649,3.09957358,232.81,232.75,3.8651]
[1759746272849,3.09957358,232.82,232.76,7.97]
[1759746273154,3.09957358,232.81,232.76,3.8649]
[1759746273356,3.09957358,232.82,232.76,3.8649]
[1759746273554,3.09957358,232.81,232.77,7.97]
[1759746273754,58.14,232.83,232.76,3.8649]
[1759746273755,3.09957358,232.82,232.76,11.8349]
[1759746273958,3.09957358,232.81,232.76,3.8649]
[1759746274157,3.09957358,232.82,232.76,3.8649]
[1759746274357,3.09957358,232.81,232.76,3.8649]
[1759746274557,3.09957358,232.82,232.76,11.7949]
[1759746274755,3.09957358,232.81,232.76,3.8649]
[1759746274960,3.09957358,232.82,232.76,11.7949]
[1759746275162,3.09957358,232.81,232.76,3.8649]
[1759746275356,3.09957358,232.82,232.76,11.7949]
[1759746275556,3.09957358,232.81,232.76,3.8649]
[1759746275864,3.09957358,232.82,232.76,11.7949]
[1759746276160,9.65957358,232.81,232.75,7.93]
[1759746276361,3.09957358,232.8,232.74,5.78486508]
[1759746276562,3.09957358,232.8,232.75,7.93]
[1759746277262,3.09957358,232.8,232.74,5.78486508]
[1759746277456,3.09957358,232.8,232.75,7.93]
[1759746279466,3.09957358,232.8,232.76,7.93]
[1759746279657,3.09957358,232.81,232.75,3.8651]
[1759746279854,3.09957358,232.81,232.76,7.93]
[1759746280055,3.09957358,232.81,232.75,3.8651]
[1759746280259,3.09957358,232.81,232.76,7.93]
[1759746280460,3.09957358,232.81,232.75,3.8651]
[1759746280965,3.09957358,232.81,232.77,7.93]
[1759746281168,3.09957358,232.82,232.74,7.93]
[1759746281764,3.09957358,232.82,232.74,60.1279]
[1759746281958,3.09957358,232.84,232.78,7.93]
[1759746282764,3.09957358,232.84,232.82,7.93]
[1759746283060,312.74,232.94,232.82,7.93]
[1759746283271,6.56,232.93,232.82,7.93]
[1759746283964,10.4223,232.93,232.84,3.8636]
[1759746284271,10.4223,232.93,232.85,7.93]
[1759746285366,3.8625,232.92,232.85,7.93]
[1759746285569,10.4225,232.92,232.85,7.93]
[1759746286170,6.56,232.92,232.85,7.93]
[1759746288164,10.4224,232.92,232.85,7.93]
[1759746289267,312.74,232.94,232.85,7.93]
[1759746289473,6.56,232.96,232.85,7.93]
[1759746290373,6.56,232.96,232.88,3.8631]
[1759746290572,6.56,232.96,232.89,7.89]
[1759746292064,6.56,232.96,232.89,11.7527]
[1759746292262,108.7815,232.98,232.9,7.89]
[1759746295268,104.92,232.98,232.9,7.89]
[1759746295469,104.92,232.98,232.9,1.91956508]
[1759746295670,104.92,232.98,232.91,7.89]
[1759746296473,4.06333067,233.05,232.9,62.00606508]
[1759746296671,6.56,233.04,232.93,1.91956508]
[1759746296871,29.02,233.04,232.94,7.89]
[1759746297066,29.02,233.04,232.97,1.22566617]
[1759746297271,29.02,233.04,232.97,9.11566617]
[1759746297673,29.02,233.04,232.97,12.97726617]
[1759746298877,29.02,233.04,232.97,9.11566617]
[1759746300473,312.64,233.08,232.97,9.11566617]
[1759746300677,417.5,233.08,233.0,9.11566617]
[1759746301579,417.5,233.08,233.0,12.97666617]
[1759746303071,6.56,233.07,233.0,12.97666617]
[1759746306982,6.56,233.07,233.01,3.8608]
[1759746307187,104.86,233.08,233.03,7.89]
[1759746307384,104.86,233.08,233.05,7.89]
[1759746308479,6.56,233.07,232.99,1.22566617]
[1759746308680,7.78566617,233.07,232.99,1.22566617]
[1759746308991,6.56,233.07,233.01,1.22566617]
[1759746309780,6.56,233.07,233.01,9.11566617]
[1759746310288,104.82,233.09,233.05,1.22566617]
[1759746310482,104.82,233.09,233.06,7.89]
[1759746310685,104.82,233.09,233.05,1.22566617]
[1759746311084,104.82,233.09,233.06,11.75]
[1759746311492,6.56,233.08,233.06,3.86]
[1759746311792,104.82,233.09,233.07,7.89]
[1759746313292,104.82,233.09,233.06,5.08566617]
[1759746313693,111.38,233.09,233.06,5.08566617]
[1759746314695,104.82,233.09,233.04,9.11566617]
[1759746314997,104.82,233.09,233.03,3.8605]
[1759746314998,6.56,233.08,233.03,3.8605]
[1759746315593,104.82,233.09,233.03,3.8605]
[1759746315793,6.56,233.08,233.03,3.8605]
[1759746315999,104.82,233.09,233.03,3.8605]
[1759746316998,6.56,233.08,233.03,3.8605]
[1759746317399,104.82,233.09,233.03,3.8605]
[1759746317803,6.54,233.08,233.0,12.97656617]
[1759746319704,6.54,233.08,233.0,9.11566617]
[1759746320300,6.54,233.08,233.0,12.97666617]
[1759746320602,6.54,233.08,233.0,9.11566617]
[1759746321705,6.54,233.08,233.01,3.8608]
[1759746322406,6.54,233.08,233.02,3.8606]
[1759746322896,6.54,233.1,233.0,1.22566617]
[1759746323101,6.54,233.08,233.0,1.22566617]
[1759746323607,6.54,233.08,233.01,3.8608]
[1759746324198,6.54,233.08,233.02,3.8606]
[1759746325108,3.03874896,233.07,233.02,3.8606]
[1759746325308,6.54,233.06,233.02,3.8606]
[1759746325508,108.6597,233.09,233.02,3.8606]
[1759746325509,6.54,233.08,233.02,3.8606]
[1759746325708,3.03894063,233.07,233.02,3.8606]
[1759746325906,6.54,233.07,233.02,3.8606]
[1759746326106,6.54,233.07,233.0,3.8611]
[1759746326107,3.04126071,233.06,233.0,3.8611]
[1759746333506,4.26692688,233.06,232.92,7.71]
[1759746333714,6.54,233.02,232.94,1.22566617]
[1759746333901,7.76566617,233.0,232.92,7.71]
[1759746334104,10.4015,232.98,232.9,3.8627]
[1759746334303,3.04126071,232.97,232.9,3.8627]
[1759746335815,6.90296071,232.97,232.89,1.22566617]
[1759746336012,3.04126071,232.97,232.89,1.22566617]
[1759746336316,6.55,232.96,232.89,1.22566617]
[1759746337320,6.55,232.96,232.89,5.08836617]
[1759746338420,6.55,232.96,232.89,1.22566617]
[1759746340017,10.4119,232.96,232.89,1.22566617]
[1759746340218,1.22566617,232.95,232.85,7.28]
[1759746340419,6.55,232.94,232.86,1.22566617]
[1759746340822,10.4122,232.94,232.86,1.22566617]
[1759746341211,6.55,232.94,232.86,1.22566617]
[1759746343617,6.55,232.94,232.79,5.65203028]
[1759746343916,6.55,232.9,232.81,1.22566617]
[1759746344125,1.22566617,232.91,232.79,14.15769645]
[1759746344521,3.03662492,232.92,232.79,14.15769645]
[1759746344522,3.8636,232.85,232.79,14.15769645]
[1759746344722,3.8636,232.85,232.68,7.22974465]
[1759746344723,6.55,232.84,232.73,8.50566617]
[1759746345129,35.43,232.84,232.76,1.22566617]
[1759746345425,6.55,232.84,232.76,1.22566617]
[1759746345618,6.55,232.84,232.77,7.28]
[1759746346727,6.55,232.84,232.77,11.1448]
[1759746347323,6.55,232.84,232.77,7.28]
[1759746348629,10.4138,232.84,232.77,7.28]
[1759746349226,21.22566617,232.86,232.77,7.28]
[1759746349424,1.22566617,232.92,232.82,1.22566617]
[1759746349622,7.78566617,232.92,232.83,7.38]
[1759746350425,7.78566617,232.92,232.84,3.8636]
[1759746352130,7.78566617,232.92,232.83,7.38]
[1759746353030,11.64816617,232.92,232.83,11.2437]
[1759746355023,3.8627,232.9,232.83,11.2437]
[1759746357837,11.64806617,232.92,232.84,7.38]
[1759746359137,10.4224,232.92,232.84,7.38]
[1759746359338,10.4224,232.92,232.84,11.2436]
[1759746360139,6.56,232.92,232.85,3.8634]
[1759746360340,6.56,232.92,232.84,7.38]
[1759746360537,6.56,232.92,232.84,9.29728202]
[1759746360940,24.64,232.98,232.89,3.8628]
[1759746361235,6.56,232.97,232.89,3.8628]
[1759746361444,6.56,232.97,232.87,3.8632]
[1759746362243,10.4217,232.97,232.84,9.29728202]
[1759746362432,3.8617,232.97,232.84,9.29728202]
[1759746362636,6.56,232.97,232.84,9.29728202]
[1759746362939,6.56,232.97,232.88,3.863]
[1759746363642,10.4217,232.97,232.9,3.8627]
[1759746363842,6.56,232.97,232.9,3.8627]
[1759746366548,6.56,232.97,232.91,3.8624]
[1759746366746,6.56,232.97,232.88,60.0925]
[1759746366948,6.56,232.98,232.88,62.00978202]
[1759746367146,104.84,232.99,232.93,3.8622]
[1759746367350,6.56,232.98,232.93,3.8622]
[1759746367750,6.56,232.98,232.91,3.8625]
[1759746368350,6.56,232.98,232.92,3.8623]
[1759746369858,6.56,232.98,232.93,3.8621]
[1759746373958,104.84,233.01,232.93,3.8621]
[1759746374158,3.02897481,233.0,232.93,3.8621]
[1759746375058,3.02897481,233.0,232.88,1.91728202]
[1759746376656,3.02897481,233.0,232.85,60.0994]
[1759746376869,3.02897481,233.0,232.84,1.91728202]
[1759746377171,3.02897481,233.0,232.88,3.863]
[1759746378569,3.8617,232.97,232.88,3.863]
[1759746378867,104.82,232.96,232.88,3.863]
[1759746380471,104.82,232.96,232.85,3.8634]
[1759746380672,3.03590303,232.95,232.85,3.8634]
[1759746381076,104.82,232.96,232.81,1.91728202]
[1759746381077,104.82,232.96,232.86,3.8633]
[1759746381772,15.63,232.99,232.86,14.67]
[1759746382074,104.82,232.99,232.9,14.67]
[1759746383578,104.82,233.01,232.92,14.67]
[1759746383873,328.07,233.02,232.93,14.67]
[1759746384074,432.89,233.02,232.93,14.67]
[1759746384269,104.82,233.02,232.98,3.8613]
[1759746384471,15.63,233.01,232.98,3.8613]
[1759746386571,15.63,233.01,232.95,14.67]
[1759746387474,19.491,233.01,232.95,14.67]
[1759746393978,3.8612,233.0,232.95,14.67]
[1759746394174,15.63,233.01,232.95,14.67]
[1759746394377,3.03025946,233.0,232.95,14.67]
[1759746394679,6.89135946,233.0,232.95,14.67]
[1759746395076,3.8611,233.0,232.95,14.67]
[1759746395277,6.8918079,233.0,232.95,14.67]
[1759746395575,3.8611,233.0,232.95,14.67]
[1759746395779,6.89182863,233.0,232.92,3.8624]
[1759746395978,3.8611,233.0,232.92,3.8624]
[1759746396880,6.89187526,233.0,232.9,3.8627]
[1759746397380,6.89187526,233.0,232.86,1.91728202]
[1759746397381,6.89187526,233.0,232.91,3.8625]
[1759746405894,3.03077526,233.0,232.87,60.0951]
[1759746406088,3.03077526,233.01,232.88,60.0919]
[1759746406284,3.03077526,233.03,232.9,62.00378202]
[1759746406588,23.44,233.03,232.94,3.8619]
[1759746406892,3.03077526,233.02,232.94,3.8619]
[1759746408190,3.03077526,233.02,232.86,1.91728202]
[1759746408597,3.03077526,233.01,232.86,1.91728202]
[1759746408790,3.03077526,233.02,232.85,62.01678202]
[1759746408987,3.03077526,233.01,232.85,62.01678202]
[1759746409195,3.03077526,233.02,232.85,62.01678202]
[1759746409392,3.03077526,233.01,232.85,62.01678202]
[1759746409596,3.8614,232.99,232.91,3.8624]
[1759746409897,6.56,232.98,232.92,7.51]
[1759746410893,6.56,232.98,232.92,11.3723]
[1759746412194,6.56,232.98,232.92,7.51]
[1759746413508,6.56,232.98,232.94,3.862]
[1759746413805,6.56,233.01,232.94,3.862]
[1759746414100,6.56,232.99,232.94,3.862]
[1759746414304,51.5,233.02,232.94,3.862]
[1759746414507,9.57443909,233.01,232.94,3.862]
[1759746414702,3.01443909,233.0,232.95,3.8618]
[1759746414904,3.01443909,233.01,232.93,7.51]
[1759746415107,19.72,233.04,232.96,3.8617]
[1759746415313,9.57443909,233.03,232.96,3.8617]
[1759746415607,6.56,233.01,232.96,3.8617]
[1759746416310,3.01263014,233.0,232.96,3.8617]
[1759746416517,6.56,232.99,232.93,7.51]
[1759746417706,3.01212997,232.98,232.8,7.22974465]
[1759746417901,1.91728202,232.95,232.81,7.51]
[1759746418112,13.97212997,232.94,232.81,7.51]
[1759746418308,3.8624,232.92,232.84,7.51]
[1759746418520,3.01212997,232.93,232.84,7.51]
[1759746418720,3.8625,232.92,232.84,7.51]
[1759746419022,3.01212997,232.93,232.84,7.51]
[1759746420620,3.8625,232.92,232.84,7.51]
[1759746420819,3.01212997,232.93,232.84,7.51]
[1759746421019,1.22737181,232.91,232.84,7.51]
[1759746421723,5.09007181,232.91,232.84,7.51]
[1759746422520,1.22737181,232.91,232.84,11.3736]
[1759746422725,26.30588535,232.92,232.84,8.73737181]
[1759746422918,23.3,232.92,232.84,8.73737181]
[1759746423623,1.22737181,232.97,232.87,1.22737181]
[1759746424118,4.23297395,232.97,232.87,1.22737181]
[1759746424323,4.23297395,232.97,232.9,3.8626]
[1759746426329,4.23297395,232.97,232.88,3.863]
[1759746426826,4.23297395,232.97,232.87,1.22737181]
[1759746427326,3.00560214,232.97,232.9,3.8626]
[1759746428321,59.40857181,233.0,232.92,3.8624]
[1759746428522,55.54737181,233.0,232.9,1.22737181]
[1759746428917,54.32,233.0,232.9,1.22737181]
[1759746429730,54.32,233.0,232.94,3.862]
[1759746432529,1.22737181,233.02,232.95,3.8617]
[1759746432725,75.36,233.04,232.93,1.22737181]
[1759746432931,2.99456829,233.03,232.93,1.22737181]
[1759746433229,2.99456829,233.03,232.96,3.8616]
[1759746433727,2.99456829,233.04,232.93,5.08947181]
[1759746433930,1.22737181,233.02,232.9,1.22737181]
[1759746434125,1.22737181,232.96,232.87,1.22737181]
[1759746435635,5.08927181,232.96,232.88,3.8629]
[1759746435932,6.56,232.95,232.89,7.51]
[1759746439536,1.22737181,232.96,232.89,7.51]
[1759746439738,7.78737181,232.96,232.89,7.51]
[1759746440840,6.56,232.96,232.89,11.3727]
[1759746443635,6.56,232.96,232.89,3.8627]
[1759746443835,6.56,232.96,232.9,7.34]
[1759746444438,6.56,232.96,232.9,11.2026]
[1759746450747,1.22737181,232.97,232.91,3.8624]
[1759746451043,7.78737181,232.97,232.91,11.2024]
[1759746452142,11.64907181,232.97,232.91,7.34]
[1759746453950,6.56,232.97,232.91,7.34]
[1759746454847,7.78737181,232.97,232.91,7.34]
[1759746456553,11.64907181,232.97,232.91,7.34]
[1759746457851,1.22737181,232.94,232.91,7.34]
[1759746458052,1.22737181,232.94,232.88,7.26]
[1759746462851,4.23348725,232.94,232.88,7.26]
[1759746463755,4.23348725,232.94,232.87,3.8632]
[1759746464152,1.22737181,232.96,232.89,3.8629]
[1759746464353,4.23423514,232.96,232.89,3.8629]
[1759746465764,10.78423514,232.96,232.9,7.26]
[1759746466056,6.55,232.94,232.89,3.8629]
[1759746466463,6.55,232.95,232.85,7.26]
[1759746466663,6.55,232.92,232.85,7.26]
[1759746466863,6.55,232.9,232.82,1.22737181]
[1759746467056,6.55,232.9,232.84,3.8636]
[1759746467257,6.55,232.9,232.83,7.26]
[1759746467864,6.55,232.9,232.86,3.8633]
[1759746468062,6.55,232.9,232.87,7.73]
[1759746468760,6.55,232.9,232.86,3.8633]
[1759746469066,6.56,232.94,232.88,7.73]
[1759746469266,3.00930428,232.93,232.87,3.8631]
[1759746469468,9.56930428,232.94,232.88,7.73]
[1759746469660,3.00930428,232.93,232.87,3.8631]
[1759746469967,6.56,232.93,232.88,7.73]
[1759746470160,9.56930428,232.92,232.88,7.73]
[1759746470359,3.00930428,232.91,232.87,3.8631]
[1759746470559,3.00930428,232.91,232.88,7.73]
[1759746470860,3.00930428,232.91,232.87,3.8631]
[1759746472062,3.00930428,232.91,232.88,7.73]
[1759746472473,6.56,232.92,232.87,3.8631]
[1759746472765,6.56,232.92,232.88,7.73]
[1759746472967,3.00913889,232.91,232.87,3.8631]
[1759746473260,3.00913889,232.91,232.88,7.73]
[1759746473465,6.56,232.92,232.87,3.8631]
[1759746474361,6.56,232.92,232.88,7.73]
[1759746474565,6.56,232.92,232.87,3.8631]
[1759746476263,6.56,232.92,232.88,7.73]
[1759746476468,3.00883865,232.91,232.87,3.8631]
[1759746477971,3.00883865,232.91,232.85,1.22737181]
[1759746477972,6.56,232.92,232.89,7.73]
[1759746479266,6.56,232.92,232.9,3.8626]
[1759746479467,6.56,232.92,232.89,7.73]
[1759746480367,6.56,232.92,232.89,11.5928]
[1759746480565,6.56,232.92,232.89,7.73]
[1759746483776,104.82,232.94,232.82,60.1071]
[1759746483976,3.00107934,232.93,232.82,60.1071]
[1759746485265,3.00107934,232.93,232.88,3.863]
[1759746487676,3.00107934,232.93,232.84,60.1016]
[1759746487977,22.28107934,232.96,232.84,60.1016]
[1759746488177,3.00107934,232.95,232.84,60.1016]
[1759746489677,3.00107934,232.95,232.9,3.8626]
[1759746489878,3.00107934,232.95,232.84,60.1016]
[1759746489879,6.56,232.94,232.91,7.73]
[1759746490078,5.7790286,232.97,232.91,3.8625]
[1759746490079,41.5,232.96,232.91,3.8625]
[1759746490275,3.00156005,232.95,232.92,7.73]
[1759746490480,3.00156005,232.95,232.91,3.8625]
[1759746491279,3.00156005,232.95,232.89,3.8628]
[1759746491481,3.00156005,232.95,232.85,60.0995]
[1759746491681,3.00156005,232.95,232.86,7.73]
[1759746492278,6.56,232.94,232.88,3.863]
[1759746492479,6.56,232.94,232.86,7.73]
[1759746493380,6.56,232.95,232.9,3.8626]
[1759746493581,48.06,232.96,232.87,7.73]
[1759746496080,6.56,232.95,232.93,7.73]
[1759746498782,41.5,232.96,232.94,7.57]
[1759746499084,41.5,232.96,232.93,3.8621]
[1759746499585,3.861,233.01,232.94,7.57]
[1759746499784,111.34,233.0,232.94,7.57]
[1759746499986,9.51474084,232.99,232.93,11.4321]
[1759746500181,104.78,233.0,232.93,3.8621]
[1759746500379,9.51431739,232.99,232.94,7.57]
[1759746500579,6.56,232.99,232.94,7.57]
[1759746500787,111.34,233.0,232.94,7.57]
[1759746501081,9.51436181,232.99,232.95,7.57]
[1759746501286,104.78,233.0,232.94,3.862]
[1759746501482,6.56,232.98,232.95,7.57]
[1759746501886,6.56,232.98,232.95,11.4318]
[1759746502882,104.76,233.0,232.97,7.57]
[1759746503286,104.76,233.0,232.96,3.8616]
[1759746503486,111.32,233.0,232.97,7.57]
[1759746503884,111.32,233.0,232.98,11.4314]
[1759746505183,111.32,233.0,232.98,7.57]
[1759746505384,111.32,233.0,232.97,7.57]
[1759746506586,6.56,232.99,232.97,7.57]
[1759746508684,104.76,233.0,232.96,3.8617]
[1759746508885,111.32,233.0,232.97,7.57]
[1759746510289,6.56,232.99,232.92,7.57]
[1759746510786,10.4213,232.99,232.93,3.8621]
[1759746512189,6.56,232.99,232.89,60.0892]
[1759746512387,6.56,232.99,232.88,1.9173286]
[1759746512388,104.76,233.0,232.91,7.57]
[1759746512788,104.76,233.0,232.96,3.8616]
[1759746512995,104.76,233.0,232.92,1.9173286]
[1759746513294,104.76,233.0,232.93,7.57]
[1759746514587,104.76,233.0,232.97,3.8615]
[1759746514792,111.32,233.0,232.97,11.3915]
[1759746516895,111.32,233.0,232.95,3.8618]
[1759746517093,104.76,233.0,232.95,11.3918]
[1759746517995,6.56,232.99,232.96,7.53]
[1759746518495,104.76,233.0,232.96,11.3916]
[1759746518700,6.56,232.99,232.96,11.3916]
[1759746521803,104.76,233.0,232.96,11.3916]
[1759746521995,6.56,232.99,232.96,11.3916]
[1759746529402,6.56,232.99,232.97,7.65]
[1759746533704,6.56,232.99,232.97,11.5115]
[1759746533910,6.56,232.99,232.97,7.65]